bitfinex/quotes_SOLUSD_20241209
["timestamp","ask_amount","ask_price","bid_price","bid_amount"]
[1733786601336,22.14781403,218.46,218.39,22.14781403]
[1733786601537,22.14781403,218.43,218.35,22.14781403]
[1733786601765,22.14781403,218.41,218.33,22.14781403]
[1733786601945,22.14781403,218.41,218.24,32.14781403]
[1733786601946,22.14781403,218.37,218.29,22.14781403]
[1733786602141,20.0,218.41,218.28,22.14781403]
[1733786602342,20.0,218.41,218.21,5.7566]
[1733786602343,22.14781403,218.34,218.21,5.7566]
[1733786602649,0.12549,218.4,218.18,12.14517886]
[1733786602650,22.14781403,218.33,218.25,22.14781403]
[1733786602856,22.14781403,218.31,218.24,22.14781403]
[1733786603348,22.14781403,218.33,218.25,22.14781403]
[1733786603956,22.14781403,218.32,218.24,22.14781403]
[1733786604348,42.14781403,218.31,218.24,22.14781403]
[1733786604548,20.0,218.31,218.24,22.14781403]
[1733786604746,42.14781403,218.31,218.24,22.14781403]
[1733786605368,22.14781403,218.3,218.22,22.14781403]
[1733786605574,22.14781403,218.31,218.24,22.14781403]
[1733786605783,20.0,218.31,218.24,22.14781403]
[1733786606073,20.0,218.3,218.23,22.14781403]
[1733786606279,22.14781403,218.31,218.24,22.14781403]
[1733786606469,20.0,218.3,218.25,22.14781403]
[1733786606791,22.14781403,218.33,218.25,22.14781403]
[1733786606945,22.14781403,218.32,218.25,22.14781403]
[1733786607366,7.7899,218.34,218.27,22.14781403]
[1733786607576,28.21481403,218.39,218.31,22.14781403]
[1733786607775,6.067,218.39,218.32,22.14781403]
[1733786608148,10.0,218.51,218.25,0.81241333]
[1733786608149,22.14781403,218.42,218.28,10.0]
[1733786608363,22.14781403,218.43,218.36,22.14781403]
[1733786608679,22.14781403,218.43,218.36,334.14781403]
[1733786608844,22.14781403,218.41,218.36,312.0]
[1733786609050,22.14781403,218.4,218.33,22.14781403]
[1733786609457,6.067,218.45,218.31,22.14781403]
[1733786609458,22.14781403,218.38,218.31,22.14781403]
[1733786609870,20.0,218.35,218.3,22.14781403]
[1733786610075,0.12549,218.44,218.22,28.1566]
[1733786610076,20.0,218.33,218.27,22.14781403]
[1733786610845,20.0,218.31,218.25,22.14781403]
[1733786611273,20.0,218.31,218.27,22.14781403]
[1733786612152,22.14781403,218.36,218.27,22.14781403]
[1733786612456,20.0,218.35,218.29,22.14781403]
[1733786612759,20.0,218.35,218.25,22.14781403]
[1733786612760,22.14781403,218.34,218.25,22.14781403]
[1733786613284,22.14781403,218.34,218.27,22.14781403]
[1733786614081,22.14781403,218.34,218.25,22.14781403]
[1733786614276,22.14781403,218.32,218.25,22.14781403]
[1733786614752,22.14781403,218.32,218.25,20.06781403]
[1733786615652,20.0,218.29,218.23,22.14781403]
[1733786616277,23.71891403,218.32,218.25,22.14781403]
[1733786616785,23.71891403,218.32,218.23,22.14781403]
[1733786616786,22.14781403,218.3,218.23,22.14781403]
[1733786616993,22.14781403,218.3,218.22,22.14781403]
[1733786617156,20.0,218.28,218.23,22.14781403]
[1733786618013,20.0,218.28,218.17,0.68718636]
[1733786618014,1.5711,218.32,218.25,22.14781403]
[1733786618194,20.0,218.29,218.24,22.14781403]
[1733786619862,20.0,218.3,218.24,22.14781403]
[1733786620196,1.5711,218.32,218.27,22.14781403]
[1733786620971,1.5711,218.32,218.25,22.14781403]
[1733786621178,22.14781403,218.31,218.23,22.14781403]
[1733786621377,1.5711,218.32,218.24,22.14781403]
[1733786621378,23.71891403,218.32,218.24,22.14781403]
[1733786621762,20.0,218.3,218.24,22.14781403]
[1733786622465,42.14781403,218.3,218.23,22.14781403]
[1733786622685,42.14781403,218.3,218.21,0.12549]
[1733786622686,42.14781403,218.3,218.22,22.14781403]
[1733786623005,42.14781403,218.3,218.23,22.14781403]
[1733786623374,22.14781403,218.29,218.22,22.14781403]
[1733786623794,20.0,218.26,218.22,22.14781403]
[1733786624691,20.0,218.26,218.21,22.14781403]
[1733786625074,20.0,218.25,218.2,22.14781403]
[1733786625269,20.0,218.26,218.2,22.14781403]
[1733786626096,20.0,218.26,218.21,22.14781403]
[1733786626387,20.0,218.25,218.21,22.14781403]
[1733786626585,20.0,218.25,218.19,22.14781403]
[1733786626969,20.0,218.23,218.18,22.14781403]
[1733786627201,20.0,218.23,218.16,22.14781403]
[1733786627494,42.14781403,218.23,218.16,22.14781403]
[1733786628290,42.14781403,218.23,218.15,22.14781403]
[1733786628291,22.14781403,218.22,218.15,22.14781403]
[1733786628672,20.0,218.21,218.17,22.14781403]
[1733786628873,22.14781403,218.26,218.19,22.14781403]
[1733786629091,20.0,218.23,218.19,22.14781403]
[1733786629892,20.0,218.23,218.18,22.14781403]
[1733786630212,20.0,218.22,218.18,22.14781403]
[1733786630391,20.0,218.21,218.17,22.14781403]
[1733786630707,11.90773131,218.3,218.16,22.14781403]
[1733786630708,20.0,218.2,218.16,22.14781403]
[1733786631278,20.0,218.19,218.13,22.14781403]
[1733786631480,20.0,218.19,218.14,22.14781403]
[1733786631704,20.0,218.18,218.15,22.14781403]
[1733786632394,6.6161,218.21,218.15,22.14781403]
[1733786632596,20.0,218.18,218.15,22.14781403]
[1733786632897,6.6161,218.21,218.17,22.14781403]
[1733786633101,22.14781403,218.27,218.19,22.14781403]
[1733786633102,28.76391403,218.27,218.19,22.14781403]
[1733786633287,13.86902464,218.25,218.17,13.86902464]
[1733786633608,13.86902464,218.23,218.08,0.81294762]
[1733786633917,13.86902464,218.23,218.15,13.86902464]
[1733786634220,0.12549,218.26,218.08,0.81294762]
[1733786634221,13.86902464,218.21,218.1,0.12549]
[1733786634421,0.12549,218.26,218.12,13.86902464]
[1733786634422,15.49982464,218.2,218.12,13.86902464]
[1733786634890,20.0,218.17,218.12,13.86902464]
[1733786635212,20.0,218.16,218.11,13.86902464]
[1733786635402,20.0,218.16,218.1,13.86902464]
[1733786635913,6.6161,218.14,218.08,13.86902464]
[1733786636593,6.6161,218.14,218.07,14.43531224]
[1733786636891,20.48512464,218.14,218.07,14.43531224]
[1733786637313,20.48512464,218.14,218.07,0.5662876]
[1733786637521,20.0,218.11,218.07,0.5662876]
[1733786637729,20.0,218.11,218.07,14.43531224]
[1733786638028,6.6161,218.14,218.07,0.5662876]
[1733786638312,6.6161,218.14,218.08,13.86902464]
[1733786639294,20.48512464,218.14,218.07,14.43531224]
[1733786639699,6.6161,218.19,218.12,13.86902464]
[1733786639907,6.6161,218.19,218.08,0.25098]
[1733786639908,6.6161,218.19,218.14,13.86902464]
[1733786640123,20.48512464,218.19,218.12,13.86902464]
[1733786640619,13.86902464,218.17,218.09,13.86902464]
[1733786640824,13.86902464,218.16,218.08,13.86902464]
[1733786641619,6.6161,218.19,218.13,13.86902464]
[1733786641997,20.48512464,218.19,218.12,13.86902464]
[1733786642722,13.86902464,218.18,218.1,13.86902464]
[1733786642901,13.86902464,218.17,218.1,13.86902464]
[1733786644114,20.0,218.16,218.1,13.86902464]
[1733786644422,6.6161,218.19,218.14,13.86902464]
[1733786644607,6.6161,218.19,218.08,20.25098]
[1733786644931,0.28218451,218.13,218.1,0.12549]
[1733786645228,0.28218451,218.13,218.12,20.25098]
[1733786645433,1.6308,218.26,218.14,0.12549]
[1733786645613,6.6161,218.3,218.17,20.25098]
[1733786646001,13.86902464,218.28,218.21,13.86902464]
[1733786646323,6.6161,218.3,218.23,13.86902464]
[1733786646324,20.48512464,218.3,218.23,13.86902464]
[1733786646531,6.6161,218.3,218.24,13.86902464]
[1733786646826,6.6161,218.3,218.26,13.86902464]
[1733786646994,1.6308,218.32,218.26,13.86902464]
[1733786647195,15.49982464,218.32,218.25,13.86902464]
[1733786647731,1.6308,218.32,218.26,13.86902464]
[1733786648096,13.86902464,218.35,218.28,14.12000464]
[1733786648299,6.6161,218.36,218.3,13.86902464]
[1733786648523,1.6308,218.37,218.33,13.86902464]
[1733786648723,1.6308,218.37,218.31,13.86902464]
[1733786649425,1.6308,218.37,218.31,22.16329601]
[1733786649932,28.77939601,218.41,218.33,22.16329601]
[1733786650222,28.77939601,218.41,218.34,22.16329601]
[1733786650809,22.16329601,218.39,218.31,22.16329601]
[1733786651017,22.16329601,218.35,218.27,22.16329601]
[1733786651321,6.6161,218.41,218.26,22.16329601]
[1733786651322,22.16329601,218.33,218.26,22.16329601]
[1733786652018,22.16329601,218.34,218.26,22.16329601]
[1733786652216,22.16329601,218.37,218.3,22.16329601]
[1733786652437,20.0,218.35,218.3,22.16329601]
[1733786652647,20.0,218.35,218.29,0.12549]
[1733786652817,22.16329601,218.33,218.26,22.16329601]
[1733786653027,20.0,218.35,218.29,0.12549]
[1733786653317,22.16329601,218.36,218.26,0.12549]
[1733786653526,22.16329601,218.37,218.3,22.16329601]
[1733786653944,22.16329601,218.34,218.26,312.12549]
[1733786654245,20.0,218.38,218.28,22.16329601]
[1733786654246,22.16329601,218.35,218.28,22.16329601]
[1733786654419,22.16329601,218.36,218.29,22.16329601]
[1733786654740,42.16329601,218.38,218.25,0.12549]
[1733786655043,6.6161,218.41,218.3,20.12549]
[1733786655244,6.6161,218.41,218.3,20.81230333]
[1733786655419,1.5147,218.43,218.35,0.12549]
[1733786655753,1.5147,218.43,218.35,0.93770545]
[1733786655914,6.5923,218.46,218.4,22.16329601]
[1733786656331,6.5923,218.46,218.41,22.16329601]
[1733786656935,6.5923,218.46,218.35,0.93770545]
[1733786656936,28.75559601,218.46,218.39,22.16329601]
[1733786657120,28.75559601,218.46,218.39,334.16329601]
[1733786657325,22.16329601,218.45,218.39,312.0]
[1733786657842,22.16329601,218.45,218.38,22.16329601]
[1733786658449,6.5923,218.46,218.41,0.12549]
[1733786658640,6.5923,218.46,218.41,22.28878601]
[1733786659934,28.75559601,218.46,218.4,0.12549]
[1733786660237,6.5923,218.46,218.4,0.25098]
[1733786660447,6.5923,218.46,218.41,22.16329601]
[1733786660630,6.5923,218.46,218.42,0.12549]
[1733786660834,6.5923,218.51,218.46,0.25098]
[1733786661149,1.5147,218.54,218.5,0.25098]
[1733786664253,6.5923,218.56,218.54,0.12549]
[1733786664458,1.5147,218.6,218.54,0.25098]
[1733786664660,70.0,218.87,218.58,0.25098]
[1733786664661,22.16329601,218.65,218.58,0.25098]
[1733786665150,22.16329601,218.63,218.56,0.12549]
[1733786665521,22.16329601,218.63,218.56,0.25098]
[1733786665947,22.16329601,218.65,218.58,0.25098]
[1733786667842,20.0,218.6,218.53,22.16329601]
[1733786668044,22.16329601,218.57,218.49,22.16329601]
[1733786668240,22.16329601,218.57,218.4,5.7566]
[1733786668241,22.16329601,218.54,218.47,22.16329601]
[1733786668653,22.16329601,218.53,218.46,22.16329601]
[1733786668823,28.74059601,218.54,218.46,22.16329601]
[1733786669030,28.74059601,218.54,218.4,5.7566]
[1733786669031,6.5773,218.54,218.48,22.16329601]
[1733786669423,6.5773,218.54,218.49,0.12549]
[1733786670131,28.74059601,218.54,218.48,22.16329601]
[1733786670962,28.74059601,218.54,218.41,12.13263454]
[1733786670963,28.74059601,218.54,218.46,22.16329601]
[1733786671265,20.0,218.5,218.45,13.83551292]
[1733786671426,8.2301,218.54,218.47,13.83551292]
[1733786671628,8.2301,218.54,218.39,0.68653686]
[1733786671629,8.2301,218.54,218.5,0.12549]
[1733786672460,8.2301,218.54,218.5,0.25098]
[1733786672829,8.2301,218.54,218.41,10.0]
[1733786672830,8.2301,218.54,218.47,13.83551292]
[1733786673971,20.0,218.51,218.46,13.83551292]
[1733786674668,20.0,218.5,218.46,13.83551292]
[1733786674856,20.0,218.5,218.47,0.12549]
[1733786675169,20.0,218.51,218.48,13.83551292]
[1733786676242,20.0,218.51,218.46,13.83551292]
[1733786676560,20.0,218.49,218.42,13.83551292]
[1733786676942,33.83551292,218.49,218.42,13.83551292]
[1733786677767,20.0,218.49,218.46,13.83551292]
[1733786678274,20.0,218.5,218.45,13.83551292]
[1733786678454,20.0,218.49,218.44,13.83551292]
[1733786680150,20.0,218.49,218.43,13.83551292]
[1733786680357,20.0,218.48,218.43,13.83551292]
[1733786682467,20.0,218.48,218.41,13.83551292]
[1733786682671,20.0,218.46,218.41,13.83551292]
[1733786682983,20.0,218.44,218.39,13.83551292]
[1733786683181,20.0,218.46,218.39,13.83551292]
[1733786683484,13.83551292,218.5,218.42,13.83551292]
[1733786683685,13.83551292,218.52,218.44,13.83551292]
[1733786683981,20.0,218.49,218.44,13.83551292]
[1733786684177,20.0,218.49,218.45,13.83551292]
[1733786684379,20.0,218.49,218.44,13.83551292]
[1733786686086,22.06561292,218.54,218.46,13.83551292]
[1733786686583,8.2301,218.54,218.49,0.25098]
[1733786686789,8.2301,218.54,218.49,0.12549]
[1733786686956,8.2301,218.54,218.49,0.25098]
[1733786687856,8.2301,218.54,218.48,13.83551292]
[1733786688681,7.7393,218.64,218.52,13.96100292]
[1733786688883,13.83551292,218.63,218.55,13.83551292]
[1733786689395,7.7393,218.64,218.56,0.25098]
[1733786689584,7.7393,218.64,218.56,312.25098]
[1733786689969,7.7393,218.64,218.58,0.12549]
[1733786690170,7.7393,218.64,218.58,0.25098]
[1733786690367,13.83551292,218.63,218.56,0.12549]
[1733786690571,7.7393,218.64,218.53,13.83551292]
[1733786690572,13.83551292,218.61,218.53,13.83551292]
[1733786690780,7.7393,218.64,218.56,0.12549]
[1733786690979,21.57481292,218.64,218.58,0.12549]
[1733786691272,21.57481292,218.64,218.58,0.25098]
[1733786691493,7.7393,218.64,218.58,0.25098]
[1733786691690,6.0776,218.64,218.58,0.25098]
[1733786691866,13.83551292,218.66,218.58,0.25098]
[1733786692878,7.7393,218.69,218.62,0.25098]
[1733786693070,6.0776,218.69,218.64,0.12549]
[1733786693270,19.91311292,218.69,218.64,0.25098]
[1733786693895,19.91311292,218.69,218.61,325.83551292]
[1733786693896,19.91311292,218.69,218.62,0.25098]
[1733786694287,6.0776,218.69,218.62,0.12549]
[1733786694483,6.0776,218.69,218.62,0.25098]
[1733786694872,19.91311292,218.69,218.62,0.25098]
[1733786695606,13.83551292,218.67,218.6,0.12549]
[1733786695808,13.83551292,218.67,218.6,0.25098]
[1733786696701,20.0,218.66,218.6,0.25098]
[1733786696903,20.0,218.66,218.6,312.25098]
[1733786698705,19.91311292,218.69,218.62,0.25098]
[1733786700086,19.91311292,218.69,218.58,0.12549]
[1733786700087,13.83551292,218.65,218.58,0.12549]
[1733786700296,13.83551292,218.65,218.57,13.83551292]
[1733786700808,19.91311292,218.69,218.62,0.12549]
[1733786701006,20.0,218.66,218.59,13.83551292]
[1733786701207,13.83551292,218.67,218.59,13.83551292]
[1733786701506,13.83551292,218.67,218.6,0.12549]
[1733786701813,13.83551292,218.64,218.56,13.83551292]
[1733786701988,13.83551292,218.62,218.54,13.83551292]
[1733786702306,13.83551292,218.64,218.56,13.83551292]
[1733786702478,20.0,218.61,218.57,0.12549]
[1733786702892,6.0776,218.69,218.51,2.21253022]
[1733786702893,13.83551292,218.66,218.58,13.83551292]
[1733786703094,13.83551292,218.68,218.59,0.12549]
[1733786703382,13.83551292,218.68,218.6,13.83551292]
[1733786703787,13.83551292,218.68,218.61,0.25098]
[1733786704589,13.83551292,218.66,218.58,13.83551292]
[1733786704790,13.83551292,218.68,218.61,0.12549]
[1733786705020,13.83551292,218.7,218.63,312.25098]
[1733786705783,13.83551292,218.72,218.63,312.25098]
[1733786705983,7.7118,218.8,218.68,13.83551292]
[1733786706224,7.7118,218.8,218.71,0.25098]
[1733786706225,13.83551292,218.78,218.71,0.25098]
[1733786708097,13.83551292,218.76,218.66,13.83551292]
[1733786708317,13.83551292,218.76,218.69,0.12549]
[1733786708518,13.83551292,218.78,218.71,0.12549]
[1733786708698,20.0,218.75,218.71,0.25098]
[1733786708888,20.0,218.75,218.71,312.25098]
[1733786709094,20.0,218.75,218.69,0.12549]
[1733786709718,20.0,218.75,218.69,0.25098]
[1733786709906,13.83551292,218.78,218.69,0.25098]
[1733786710100,13.83551292,218.78,218.71,0.25098]
[1733786711030,20.0,218.77,218.71,0.25098]
[1733786711196,20.0,218.76,218.71,0.25098]
[1733786711719,20.0,218.76,218.71,0.12549]
[1733786712021,20.0,218.76,218.69,0.25098]
[1733786712317,7.7118,218.8,218.66,22.4]
[1733786712318,20.0,218.72,218.66,13.83551292]
[1733786712617,20.0,218.7,218.64,13.83551292]
[1733786712804,20.0,218.7,218.65,0.12549]
[1733786713008,20.0,218.7,218.64,13.83551292]
[1733786713201,13.83551292,218.71,218.64,13.83551292]
[1733786713618,20.0,218.68,218.64,13.83551292]
[1733786713928,20.0,218.68,218.55,30.69956967]
[1733786713929,13.83551292,218.67,218.6,13.83551292]
[1733786714132,20.0,218.66,218.6,13.83551292]
[1733786714301,20.0,218.65,218.6,13.83551292]
[1733786714905,20.0,218.65,218.58,13.83551292]
[1733786715095,20.0,218.65,218.58,325.83551292]
[1733786715297,13.83551292,218.66,218.58,13.83551292]
[1733786715298,20.0,218.63,218.58,13.83551292]
[1733786717019,13.83551292,218.62,218.46,23.9263]
[1733786717217,20.0,218.57,218.52,13.83551292]
[1733786717722,13.83551292,218.64,218.56,13.83551292]
[1733786717909,13.83551292,218.64,218.47,0.68634067]
[1733786717910,20.0,218.63,218.58,13.83551292]
[1733786718223,20.0,218.63,218.59,0.12549]
[1733786718421,7.6818,218.69,218.53,312.0]
[1733786718422,21.51731292,218.69,218.61,0.25098]
[1733786718923,21.51731292,218.69,218.62,13.83551292]
[1733786719224,7.6818,218.69,218.63,0.25098]
[1733786719424,7.6818,218.69,218.63,0.12549]
[1733786719625,13.83551292,218.71,218.63,0.25098]
[1733786719827,13.83551292,218.71,218.55,11.4389]
[1733786719828,13.83551292,218.69,218.6,13.83551292]
[1733786720023,13.83551292,218.69,218.61,0.12549]
[1733786720421,13.83551292,218.71,218.63,0.25098]
[1733786720619,20.0,218.68,218.63,0.25098]
[1733786720929,6.0222,218.73,218.65,0.12549]
[1733786720930,20.0,218.7,218.65,0.12549]
[1733786721242,15.49511292,218.74,218.67,0.25098]
[1733786722524,33.83551292,218.76,218.67,0.25098]
[1733786722908,13.83551292,218.76,218.69,0.25098]
[1733786723232,13.83551292,218.78,218.69,0.25098]
[1733786723642,13.83551292,218.76,218.69,0.25098]
[1733786723934,13.83551292,218.74,218.66,13.83551292]
[1733786724312,13.83551292,218.74,218.67,0.25098]
[1733786724740,13.83551292,218.76,218.69,0.12549]
[1733786724937,13.83551292,218.76,218.69,0.25098]
[1733786725102,13.83551292,218.78,218.69,0.25098]
[1733786725420,13.83551292,218.78,218.7,13.83551292]
[1733786725616,13.83551292,218.72,218.64,0.12549]
[1733786725931,13.83551292,218.72,218.64,312.12549]
[1733786726142,13.83551292,218.72,218.65,0.12549]
[1733786726512,20.0,218.78,218.68,0.12549]
[1733786726707,20.0,218.74,218.68,0.25098]
[1733786726915,13.83551292,218.75,218.68,0.25098]
[1733786727117,20.0,218.72,218.68,0.25098]
[1733786728635,8.41876701,218.83,218.6,23.08577513]
[1733786728636,20.0,218.74,218.7,0.25098]
[1733786728832,13.83551292,218.77,218.7,0.25098]
[1733786729024,20.0,218.76,218.7,0.25098]
[1733786729426,13.83551292,218.79,218.72,0.25098]
[1733786730110,6.5884,218.83,218.7,0.12549]
[1733786730319,13.83551292,218.79,218.7,0.25098]
[1733786730922,13.83551292,218.79,218.72,0.25098]
[1733786732360,6.5884,218.83,218.76,0.25098]
[1733786733156,0.5662,218.83,218.78,0.12549]
[1733786733456,13.83551292,218.82,218.78,0.12549]
[1733786733737,14.40171292,218.83,218.78,0.12549]
[1733786734344,14.40171292,218.83,218.75,13.83551292]
[1733786734345,27.67102584,218.79,218.64,22.4]
[1733786734556,13.83551292,218.74,218.66,13.83551292]
[1733786734749,13.83551292,218.79,218.64,0.68577573]
[1733786734750,13.83551292,218.72,218.64,13.83551292]
[1733786735141,13.83551292,218.75,218.68,0.12549]
[1733786735540,13.83551292,218.75,218.65,0.68589448]
[1733786735541,13.83551292,218.75,218.7,0.12549]
[1733786736132,20.0,218.74,218.7,0.12549]
[1733786736334,1.81844463,218.87,218.8,0.12549]
[1733786736562,1.81844463,218.87,218.82,0.12549]
[1733786736754,1.81844463,218.87,218.76,5.7566]
[1733786736755,13.83551292,218.84,218.74,20.0]
[1733786737068,13.83551292,218.81,218.74,20.0]
[1733786737231,13.83551292,218.79,218.71,0.68546241]
[1733786737431,13.83551292,218.79,218.7,13.83551292]
[1733786737669,13.83551292,218.79,218.72,13.83551292]
[1733786737833,13.83551292,218.81,218.73,0.12549]
[1733786738261,13.83551292,218.81,218.75,0.12549]
[1733786738578,13.83551292,218.79,218.7,13.83551292]
[1733786739064,13.83551292,218.79,218.71,0.12549]
[1733786739275,13.83551292,218.79,218.73,0.12549]
[1733786740056,13.83551292,218.79,218.65,0.68562162]
[1733786740057,13.83551292,218.79,218.7,13.83551292]
[1733786740266,20.0,218.76,218.7,13.83551292]
[1733786740850,20.0,218.75,218.7,13.83551292]
[1733786741329,33.83551292,218.75,218.65,13.83551292]
[1733786741537,13.83551292,218.73,218.65,13.83551292]
[1733786741769,20.0,218.7,218.63,13.83551292]
[1733786741943,20.0,218.7,218.66,0.12549]
[1733786742369,20.0,218.72,218.67,13.83551292]
[1733786743463,13.83551292,218.75,218.67,13.83551292]
[1733786743658,20.0,218.72,218.67,13.83551292]
[1733786744561,20.0,218.72,218.65,13.83551292]
[1733786745070,20.0,218.72,218.66,0.12549]
[1733786746365,20.0,218.7,218.65,13.83551292]
[1733786746765,13.83551292,218.71,218.65,13.83551292]
[1733786746962,20.0,218.72,218.6,13.83551292]
[1733786746963,20.0,218.66,218.6,13.83551292]
[1733786747155,20.0,218.72,218.6,13.83551292]
[1733786747156,13.83551292,218.67,218.6,13.83551292]
[1733786747538,13.83551292,218.67,218.61,0.12549]
[1733786747753,13.83551292,218.67,218.6,13.83551292]
[1733786747952,21.77151292,218.67,218.59,13.83551292]
[1733786748347,13.83551292,218.64,218.51,6.44270356]
[1733786748549,13.83551292,218.64,218.57,13.83551292]
[1733786748746,13.83551292,218.63,218.56,13.83551292]
[1733786749148,17.936,218.67,218.53,13.83551292]
[1733786749464,17.936,218.67,218.49,13.83551292]
[1733786749465,13.83551292,218.56,218.49,13.83551292]
[1733786750135,20.16151292,218.55,218.48,13.83551292]
[1733786750335,20.16151292,218.55,218.38,11.4476]
[1733786750336,13.83551292,218.51,218.44,13.83551292]
[1733786750741,13.83551292,218.5,218.43,13.83551292]
[1733786750972,13.83551292,218.51,218.44,13.83551292]
[1733786752159,7.936,218.55,218.5,13.83551292]
[1733786753230,7.936,218.55,218.49,22.12993525]
[1733786753351,7.936,218.55,218.49,0.12549]
[1733786753352,30.06593525,218.55,218.49,0.12549]
[1733786753751,22.12993525,218.53,218.46,22.12993525]
[1733786753956,22.12993525,218.51,218.44,22.12993525]
[1733786754169,22.12993525,218.51,218.45,0.12549]
[1733786754375,7.936,218.55,218.42,22.12993525]
[1733786754376,22.12993525,218.49,218.42,22.12993525]
[1733786754557,22.12993525,218.48,218.41,22.12993525]
[1733786754751,7.936,218.55,218.37,22.12993525]
[1733786754752,22.12993525,218.44,218.37,22.12993525]
[1733786754957,22.12993525,218.44,218.36,22.12993525]
[1733786755150,10.0,218.54,218.31,5.7566]
[1733786755151,22.12993525,218.47,218.39,22.12993525]
[1733786755359,22.12993525,218.48,218.41,22.12993525]
[1733786756165,22.12993525,218.47,218.4,22.12993525]
[1733786756366,22.12993525,218.47,218.41,0.12549]
[1733786757687,22.12993525,218.51,218.44,22.38091525]
[1733786757977,22.12993525,218.54,218.48,0.12549]
[1733786758181,30.06593525,218.55,218.49,0.12549]
[1733786758602,22.12993525,218.52,218.45,22.12993525]
[1733786758758,22.12993525,218.52,218.46,0.12549]
[1733786759376,22.12993525,218.53,218.47,0.12549]
[1733786759582,22.12993525,218.54,218.47,22.25542525]
[1733786759996,30.06593525,218.55,218.49,0.12549]
[1733786760168,22.12993525,218.54,218.49,0.12549]
[1733786760728,22.12993525,218.54,218.48,0.12549]
[1733786760894,22.12993525,218.53,218.46,22.12993525]
[1733786761193,22.12993525,218.54,218.48,0.12549]
[1733786761371,30.06593525,218.55,218.49,0.25098]
[1733786761754,22.12993525,218.54,218.48,0.25098]
[1733786761986,22.12993525,218.53,218.48,0.25098]
[1733786762784,22.12993525,218.54,218.47,22.38091525]
[1733786763375,30.06593525,218.55,218.47,22.38091525]
[1733786763976,22.12993525,218.53,218.47,0.12549]
[1733786764502,22.12993525,218.53,218.46,0.25098]
[1733786764893,6.326,218.55,218.5,0.12549]
[1733786765580,6.326,218.55,218.49,22.25542525]
[1733786765909,6.326,218.55,218.5,0.12549]
[1733786766112,22.12993525,218.57,218.51,0.12549]
[1733786766613,22.12993525,218.58,218.52,0.12549]
[1733786767184,22.12993525,218.59,218.53,0.12549]
[1733786767402,20.0,218.69,218.53,0.12549]
[1733786767403,22.12993525,218.63,218.57,0.12549]
[1733786767689,22.12993525,218.64,218.57,0.12549]
[1733786767895,22.12993525,218.65,218.58,0.12549]
[1733786768252,22.12993525,218.67,218.6,0.25098]
[1733786769281,22.12993525,218.67,218.62,0.25098]
[1733786769604,22.12993525,218.69,218.62,0.25098]
[1733786770422,30.06593525,218.71,218.64,0.25098]
[1733786770724,7.936,218.71,218.66,0.25098]
[1733786770919,30.06593525,218.71,218.66,0.25098]
[1733786771284,22.12993525,218.73,218.66,0.25098]
[1733786772617,22.12993525,218.71,218.64,0.12549]
[1733786772828,22.12993525,218.69,218.62,0.12549]
[1733786773311,22.12993525,218.71,218.64,0.25098]
[1733786773507,22.12993525,218.73,218.66,0.12549]
[1733786773705,22.12993525,218.73,218.66,0.25098]
[1733786775016,22.12993525,218.75,218.66,0.25098]
[1733786775192,22.12993525,218.75,218.68,0.25098]
[1733786776311,22.12993525,218.73,218.68,0.12549]
[1733786776497,22.12993525,218.73,218.66,0.25098]
[1733786777110,22.12993525,218.75,218.68,0.25098]
[1733786777316,13.80861299,218.72,218.64,13.80861299]
[1733786777517,13.80861299,218.7,218.65,0.12549]
[1733786778016,13.80861299,218.72,218.65,0.25098]
[1733786779007,13.80861299,218.74,218.67,0.12549]
[1733786779395,13.80861299,218.74,218.67,0.25098]
[1733786779791,13.80861299,218.76,218.69,0.12549]
[1733786780229,20.0,218.73,218.69,0.25098]
[1733786780732,20.0,218.73,218.69,0.12549]
[1733786781032,20.0,218.73,218.67,0.25098]
[1733786782323,20.0,218.73,218.57,22.4]
[1733786782324,13.80861299,218.7,218.57,22.4]
[1733786782510,13.80861299,218.69,218.61,13.80861299]
[1733786782702,13.80861299,218.71,218.64,0.12549]
[1733786782909,13.80861299,218.73,218.68,0.12549]
[1733786783102,13.80861299,218.75,218.68,0.12549]
[1733786783626,13.80861299,218.75,218.68,0.25098]
[1733786784495,13.80861299,218.72,218.65,13.80861299]